[Event "FRA-ch Youth U18 2019"]
[Site "Hyeres"]
[Date "2019.04.14"]
[Round "1.1"]
[White "Travadon, Loic"]
[Black "Petit, Jimmy"]
[Result "1-0"]
[ECO "A08"]
[WhiteElo "2456"]
[BlackElo "1745"]
[Annotator "ChessBase"]
[PlyCount "73"]
[EventDate "2019.04.14"]
[EventType "swiss"]
[EventCountry "FRA"]
[SourceTitle "playchess.com"]
[Source "ChessBase"]
[SourceQuality "1"]
[TimeControl "5400+30"]

1. e4 {[%emt 0:00:00]} e6 {[%emt 0:00:00]} 2. d3 {[%emt 0:00:21]} d5 {[%emt 0:01:34]} 3. Nd2 {[%emt 0:00:05]} c5 {[%emt 0:01:55]} 4. Ngf3 {[%emt 0:00:06]} Nc6 {[%emt 0:01:16]} 5. g3 {[%emt 0:00:04]} Nf6 {[%emt 0:02:12]} 6. Bg2 {[%emt 0:00:05]} Bd6 {[%emt 0:05:09]} 7. O-O {[%emt 0:00:12]} O-O {[%emt 1:21:24]} 8. Re1 {[%emt 0:00:23]} Nd7 {[%emt 0:00:00]} 9. b3 {[%emt 0:02:25]} Qf6 {[%emt 0:00:00]} 10. Rb1 {[%emt 0:00:12]} Nde5 {[%emt 0:00:00]} 11. Bb2 {[%emt 0:01:26]} Nxf3+ {[%emt 0:00:00]} 12. Nxf3 {[%emt 0:01:18]} d4 {[%emt 0:00:00]} 13. Nd2 {[%emt 0:00:34]} e5 {[%emt 0:00:00]} 14. Rf1 {[%emt 0:01:04]} Qe7 {[%emt 0:00:00]} 15. f4 {[%emt 0:02:01]} f5 {[%emt 0:00:00]} 16. exf5 {[%emt 0:05:08]} Bxf5 {[%emt 0:00:00]} 17. g4 {[%emt 0:01:18]} Bd7 {[%emt 0:00:00]} 18. f5 {[%emt 0:00:11]} Rab8 {[%emt 0:00:00]} 19. Ne4 {[%emt 0:00:25]} Nb4 {[%emt 0:00:00]} 20. Bc1 {[%emt 0:00:46]} h6 {[%emt 0:00:00]} 21. Bd2 {[%emt 0:03:00]} Bc6 {[%emt 0:00:00]} 22. g5 {[%emt 0:00:51]} Bxe4 {[%emt 0:00:00]} 23. Bxe4 {[%emt 0:00:06]} hxg5 {[%emt 0:00:00]} 24. Qg4 {[%emt 0:01:25]} Nxc2 {[%emt 0:00:00]} 25. Bxg5 {[%emt 0:00:09]} Qf7 {[%emt 0:00:00]} 26. Qg2 {[%emt 0:00:35]} Qh5 {[%emt 0:00:36]} 27. Bf3 {[%emt 0:00:32]} Qh7 {[%emt 0:01:45]} 28. Qxc2 {[%emt 0:00:13]} Rxf5 {[%emt 0:00:08]} 29. Bd5+ {[%emt 0:00:05]} Kh8 {[%emt 0:00:24]} 30. Rxf5 {[%emt 0:00:14]} Qxf5 {[%emt 0:00:04]} 31. Qg2 {[%emt 0:00:06]} Rf8 {[%emt 0:02:27]} 32. Be4 {[%emt 0:00:06]} Qe6 {[%emt 0:01:13]} 33. Kh1 {[%emt 0:00:11]} Be7 {[%emt 0:01:11]} 34. Bxe7 {[%emt 0:00:10]} Qxe7 {[%emt 0:00:01]} 35. Qh3+ {[%emt 0:00:00]} Kg8 {[%emt 0:00:13]} 36. Bd5+ {[%emt 0:00:08]} Rf7 {[%emt 0:00:03]} 37. Rf1 {[%emt 0:00:19]} 1-0

[Event "FRA-ch Youth U18 2019"]
[Site "Hyeres"]
[Date "2019.04.14"]
[Round "1.2"]
[White "Fastier, Adrien"]
[Black "Lucas, Arthur"]
[Result "0-1"]
[ECO "B61"]
[WhiteElo "1734"]
[BlackElo "2301"]
[Annotator "NA"]
[PlyCount "60"]
[EventDate "2019.04.14"]
[EventType "swiss"]
[EventCountry "FRA"]
[SourceTitle "playchess.com"]
[Source "ChessBase"]
[SourceQuality "1"]
[TimeControl "5400+30"]

1. e4 {[%emt 0:00:00]} c5 {[%emt 0:00:00]} 2. Nf3 {[%emt 0:00:00]} Nc6 {[%emt 0:00:00]} 3. d4 {[%emt 0:00:00]} cxd4 {[%emt 0:00:00]} 4. Nxd4 {[%emt 0:00:00]} Nf6 {[%emt 0:01:35]} 5. Nc3 {[%emt 0:00:00]} d6 {[%emt 0:00:03]} 6. Bg5 {[%emt 0:10:51]} Bd7 {[%emt 0:00:08]} 7. Qd2 {[%emt 0:08:07]} Rc8 {[%emt 0:00:09]} 8. O-O-O {[%emt 0:08:35]} Nxd4 {[%emt 0:00:19]} 9. Qxd4 {[%emt 0:02:10]} Qa5 {[%emt 0:00:05]} 10. Bxf6 {[%emt 0:03:01]} gxf6 {[%emt 0:01:48]} 11. a3 {[%emt 0:03:02]} Rg8 {[%emt 0:07:44]} 12. Qb4 {[%emt 0:05:05]} Qxb4 {[%emt 0:09:46]} 13. axb4 {[%emt 0:00:13]} Bg7 {[%emt 0:02:13]} 14. Nb5 {[%emt 0:28:46]} f5 {[%emt 0:07:15]} 15. f3 {[%emt 0:08:13]} a6 {[%emt 0:03:39]} 16. Nd4 {[%emt 0:00:51]} fxe4 {[%emt 0:02:29]} 17. fxe4 {[%emt 0:00:21]} Ba4 {[%emt 0:14:35]} 18. b3 {[%emt 0:03:29]} Bxd4 {[%emt 0:02:21]} 19. bxa4 {[%emt 0:00:21]} Bc3 {[%emt 0:00:03]} 20. b5 {[%emt 0:00:32]} axb5 {[%emt 0:00:03]} 21. Bxb5+ {[%emt 0:00:14]} Kf8 {[%emt 0:00:04]} 22. g3 {[%emt 0:02:04]} Rg4 {[%emt 0:00:22]} 23. Bd7 {[%emt 0:01:08]} Rxe4 {[%emt 0:00:12]} 24. Rhf1 {[%emt 0:10:40]} Rc5 {[%emt 0:01:34]} 25. Rd3 {[%emt 0:00:48]} Re2 {[%emt 0:02:20]} 26. Rdf3 {[%emt 0:00:51]} Bf6 {[%emt 0:00:59]} 27. Bf5 {[%emt 0:01:06]} Rxh2 {[%emt 0:00:15]} 28. Rb3 {[%emt 0:01:00]} Rc4 {[%emt 0:02:36]} 29. Bd7 {[%emt 0:00:47]} Rcxc2+ {[%emt 0:00:33]} 30. Kd1 {[%emt 0:01:02]} Bg5 {[%emt 0:02:22]} 0-1

[Event "FRA-ch Youth U18 2019"]
[Site "Hyeres"]
[Date "2019.04.14"]
[Round "1.3"]
[White "Gao, Etienne"]
[Black "Long, Raphael"]
[Result "1-0"]
[ECO "B38"]
[WhiteElo "2286"]
[BlackElo "1733"]
[Annotator "NA"]
[PlyCount "49"]
[EventDate "2019.04.14"]
[EventType "swiss"]
[EventCountry "FRA"]
[SourceTitle "playchess.com"]
[Source "ChessBase"]
[SourceQuality "1"]
[TimeControl "5400+30"]

1. e4 {[%emt 0:00:00]} c5 {[%emt 0:00:00]} 2. Nf3 {[%emt 0:00:00]} g6 {[%emt 0:00:00]} 3. d4 {[%emt 0:00:02]} cxd4 {[%emt 0:00:00]} 4. Nxd4 {[%emt 0:00:04]} Bg7 {[%emt 0:00:00]} 5. c4 {[%emt 0:00:13]} Nc6 {[%emt 0:00:00]} 6. Be3 {[%emt 0:00:24]} d6 {[%emt 0:00:18]} 7. Nc3 {[%emt 0:00:23]} Nh6 {[%emt 0:04:58]} 8. f3 {[%emt 0:07:58]} Nxd4 {[%emt 0:08:12]} 9. Bxd4 {[%emt 0:00:06]} O-O {[%emt 0:00:21]} 10. Bxg7 {[%emt 0:09:17]} Kxg7 {[%emt 0:00:11]} 11. Qd4+ {[%emt 0:00:08]} f6 {[%emt 0:00:22]} 12. c5 {[%emt 0:17:50]} Nf7 {[%emt 0:10:23]} 13. Rd1 {[%emt 0:04:02]} Qa5 {[%emt 0:11:32]} 14. cxd6 {[%emt 0:10:46]} Nxd6 {[%emt 0:09:43]} 15. Bc4 {[%emt 0:01:05]} Rb8 {[%emt 0:20:00]} 16. Bb3 {[%emt 0:03:42]} b6 {[%emt 0:11:56]} 17. O-O {[%emt 0:03:29]} Rd8 {[%emt 0:02:45]} 18. Kh1 {[%emt 0:11:35]} Ba6 {[%emt 0:01:28]} 19. Rfe1 {[%emt 0:00:09]} e5 {[%emt 0:03:12]} 20. Qf2 {[%emt 0:01:38]} Nb5 {[%emt 0:00:49]} 21. Nd5 {[%emt 0:02:23]} Rd7 {[%emt 0:07:53]} 22. f4 {[%emt 0:03:28]} exf4 {[%emt 0:02:06]} 23. Nxf6 {[%emt 0:02:04]} Re7 {[%emt 0:01:16]} 24. Qxf4 {[%emt 0:01:26]} Rf8 {[%emt 0:03:50]} 25. Nh5+ {[%emt 0:00:43]} 1-0

[Event "FRA-ch Youth U18 2019"]
[Site "Hyeres"]
[Date "2019.04.14"]
[Round "1.4"]
[White "Drevet, Florian"]
[Black "Mazzella, Enzo"]
[Result "0-1"]
[ECO "D85"]
[WhiteElo "1707"]
[BlackElo "2249"]
[Annotator "NA"]
[PlyCount "92"]
[EventDate "2019.04.14"]
[EventType "swiss"]
[EventCountry "FRA"]
[SourceTitle "playchess.com"]
[Source "ChessBase"]
[SourceQuality "1"]
[TimeControl "5400+30"]

1. d4 {[%emt 0:00:00]} Nf6 {[%emt 0:00:00]} 2. c4 {[%emt 0:00:00]} g6 {[%emt 0:00:00]} 3. Nc3 {[%emt 0:00:00]} d5 {[%emt 0:00:00]} 4. cxd5 {[%emt 0:00:57]} Nxd5 {[%emt 0:00:00]} 5. Na4 {[%emt 0:01:33]} Bg7 {[%emt 0:06:19]} 6. e4 {[%emt 0:02:08]} Nb6 {[%emt 0:00:09]} 7. Be3 {[%emt 0:01:50]} O-O {[%emt 0:00:39]} 8. Nf3 {[%emt 0:01:08]} Nc6 {[%emt 0:08:13]} 9. Nc5 {[%emt 0:13:10]} e6 {[%emt 0:16:11]} 10. Bb5 {[%emt 0:09:02]} f5 {[%emt 0:31:42]} 11. Bxc6 {[%emt 0:22:17]} bxc6 {[%emt 0:00:06]} 12. Qb3 {[%emt 0:06:57]} f4 {[%emt 0:02:31]} 13. Nxe6 {[%emt 0:05:08]} Bxe6 {[%emt 0:00:01]} 14. Qxe6+ {[%emt 0:00:12]} Kh8 {[%emt 0:00:04]} 15. Bd2 {[%emt 0:03:17]} Re8 {[%emt 0:19:51]} 16. Qxc6 {[%emt 0:03:20]} Qd6 {[%emt 0:00:12]} 17. Qc2 {[%emt 0:05:20]} g5 {[%emt 0:06:22]} 18. h3 {[%emt 0:05:26]} Qg6 {[%emt 0:01:15]} 19. O-O {[%emt 0:03:43]} g4 {[%emt 0:02:32]} 20. hxg4 {[%emt 0:01:18]} Qxg4 {[%emt 0:00:02]} 21. Qxc7 {[%emt 0:02:51]} Rf8 {[%emt 0:03:46]} 22. Ne5 {[%emt 0:07:15]} Qh5 {[%emt 0:00:32]} 23. Nf3 {[%emt 0:00:58]} Rac8 {[%emt 0:00:29]} 24. Qxa7 {[%emt 0:00:36]} Rf6 {[%emt 0:00:05]} 25. Rfc1 {[%emt 0:01:48]} Rg8 {[%emt 0:00:45]} 26. Rc5 {[%emt 0:00:45]} Qe8 {[%emt 0:00:40]} 27. Re5 {[%emt 0:01:00]} Qd8 {[%emt 0:00:32]} 28. Ba5 {[%emt 0:00:41]} Rg6 {[%emt 0:00:27]} 29. Re7 {[%emt 0:00:42]} Qd6 {[%emt 0:00:33]} 30. Bxb6 {[%emt 0:00:23]} Qb4 {[%emt 0:00:29]} 31. Bc5 {[%emt 0:00:30]} Qxb2 {[%emt 0:00:25]} 32. Rf1 {[%emt 0:00:18]} Qe2 {[%emt 0:00:29]} 33. Rxg7 {[%emt 0:01:01]} R6xg7 {[%emt 0:00:09]} 34. Qxg7+ {[%emt 0:00:55]} Rxg7 {[%emt 0:00:05]} 35. Nh2 {[%emt 0:00:22]} Qxe4 {[%emt 0:00:21]} 36. f3 {[%emt 0:00:08]} Qe3+ {[%emt 0:00:36]} 37. Kh1 {[%emt 0:00:09]} Qe2 {[%emt 0:01:04]} 38. Rg1 {[%emt 0:00:11]} Qxa2 {[%emt 0:00:26]} 39. Bd6 {[%emt 0:00:05]} Rf7 {[%emt 0:00:48]} 40. Re1 {[%emt 0:00:25]} Qa4 {[%emt 0:00:38]} 41. Ng4 {[%emt 0:00:35]} h5 {[%emt 0:00:30]} 42. Ne5 {[%emt 0:00:44]} Rg7 {[%emt 0:00:26]} 43. Bf8 {[%emt 0:01:45]} Rg8 {[%emt 0:00:33]} 44. Nf7+ {[%emt 0:00:22]} Kh7 {[%emt 0:00:05]} 45. Bc5 {[%emt 0:00:41]} Qa2 {[%emt 0:00:12]} 46. Rg1 {[%emt 0:00:12]} Qxf7 {[%emt 0:00:06]} 0-1

[Event "FRA-ch Youth U18 2019"]
[Site "Hyeres"]
[Date "2019.04.15"]
[Round "2.2"]
[White "Lucas, Arthur"]
[Black "Navrotescu, Vlad-Andrei"]
[Result "0-1"]
[ECO "C01"]
[WhiteElo "2301"]
[BlackElo "1892"]
[Annotator "NA RC"]
[PlyCount "68"]
[EventDate "2019.04.14"]
[EventType "swiss"]
[EventCountry "FRA"]
[SourceTitle "playchess.com"]
[Source "ChessBase"]
[SourceQuality "1"]
[TimeControl "5400+30"]

{[%evp 10,68,27,32767,18,9,16,18,89,127,105,93,109,108,231,32767,99,54,86,61,57,0,0,4,0,-119,-103,-547,-587,-546,-586,-574,-620,-731,-746,-687,-723,-845,-511,-507,-528,-529,-539,-662,-764,-563,-740,-835,32767,-854,-830,-6821,-29987,32767,-29986,-4878,-29989,-29989,-831,-29996,-29997]} 1. e4 {[%emt 0:00:00]} e6 {[%emt 0:00:00]} 2. d4 {[%emt 0:00:00]} d5 {[%emt 0:00:00]} 3. Bd3 {[%emt 0:00:13]} c5 {[%emt 0:00:06]} 4. exd5 {[%emt 0:00:07]} exd5 {[%emt 0:01:36]} 5. Nf3 {[%emt 0:00:20]} Nf6 {[%emt 0:01:01]} 6. O-O {[%emt 0:03:43] C01: French: Exchange Variation} c4 {[%emt 0:01:29]} 7. Be2 {[%emt 0:05:55]} (7. Re1+ Be7 8. Be2 O-O 9. b3 cxb3 10. axb3 Nc6 11. c3 Re8 12. Nbd2 Bd6 13. Bd3 Bg4 14. Rxe8+ Qxe8 {0-1 (52) Fontaine,R (2563)-Carlsen,M (2834) chess.com INT 2018}) 7... Bd6 {[%emt 0:05:27]} 8. b3 {[%emt 0:01:27] LiveBook: 12 Games} Qc7 $146 {[%emt 0:03:35]} ({Predecessor:} 8... cxb3 $11 9. axb3 O-O 10. c4 Nc6 11. Nc3 Bb4 12. Nxd5 Nxd5 13. cxd5 {0-1 (21) Druska,J (2441)-Matsenko,S (2534) Konya 2017}) 9. bxc4 {[%emt 0:09:22]} dxc4 {[%emt 0:00:27]} 10. Na3 {[%emt 0:00:04]} Be6 {[%emt 0:22:12]} 11. Nb5 {[%emt 0:00:40]} Qc6 {[%emt 0:00:28] [#]} (11... Qd7 $16 12. Nxd6+) 12. Nxd6+ {[%emt 0:11:09]} (12. d5 $1 $18 {[%mdl 512] is more deadly.} Nxd5 {[#]} (12... Qxd5 13. Nxd6+) 13. Bxc4 $1 {[%mdl 512]}) 12... Qxd6 {[%emt 0:00:07]} 13. a4 {[%emt 0:04:30]} Qc7 {[%emt 0:01:32]} 14. Ba3 {[%emt 0:02:30]} Nc6 {[%emt 0:06:35]} 15. Ng5 {[%emt 0:06:05]} (15. Ne5 $14) 15... Bd5 $1 {[%emt 0:00:23]} 16. c3 {[%emt 0:14:38]} O-O-O {[%emt 0:03:38]} 17. Bf3 {[%emt 0:05:48]} (17. Nf3 $11 {remains equal.}) 17... h6 {[%emt 0:06:59]} 18. Bxd5 $4 {[%emt 0:03:16]} (18. Nh3 $17) 18... hxg5 {[%emt 0:00:12]} ({And not} 18... Rxd5 19. Nf3 $14) 19. h3 {[%emt 0:03:08]} Rxd5 {[%emt 0:00:13]} 20. Qe2 {[%emt 0:01:38] [#]} g4 $1 {[%emt 0:00:20]} 21. Qxc4 {[%emt 0:00:22]} gxh3 {[%emt 0:00:08]} 22. g3 {[%emt 0:00:03]} Rg5 {[%emt 0:01:58]} 23. Qd3 {[%emt 0:00:32]} Nh5 {[%emt 0:05:24]} 24. Kh2 {[%emt 0:01:09]} f5 {[%emt 0:00:40]} 25. Bc1 {[%emt 0:06:12]} f4 {[%emt 0:04:23]} 26. Rg1 {[%emt 0:00:35]} fxg3+ {[%emt 0:01:34]} 27. fxg3 {[%emt 0:00:08] [#]} Rxg3 $1 {[%emt 0:00:29]} 28. Qf5+ {[%emt 0:02:46]} Kb8 {[%emt 0:03:15]} 29. Bf4 {[%emt 0:00:39]} Nxf4 {[%emt 0:00:08]} 30. Kxg3 {[%emt 0:01:11]} Ne2+ {[%emt 0:00:35] Double Attack} 31. Kf2 {[%emt 0:00:18]} Nxg1 {[%emt 0:00:13]} 32. Rxg1 {[%emt 0:00:10]} Qh2+ {[%emt 0:01:49]} 33. Kf1 {[%emt 0:00:03]} Re8 $19 {[%emt 0:00:25]} (33... Qd2 $142 34. Qf7 {[#]} Nxd4 $1 {[%mdl 512]} 35. cxd4 Rc8 36. Qf4+ Qxf4+ 37. Ke2 Rc2+ 38. Kd3 Rd2+ 39. Kc4 Qxd4+ {[%mdl 64] Double Attack} 40. Kb5 Rb2+ 41. Ka5 Qe5#) 34. Qf3 {[%emt 0:00:20]} Qd2 {[%emt 0:00:48]} 0-1

[Event "FRA-ch Youth U18 2019"]
[Site "Hyeres"]
[Date "2019.04.15"]
[Round "3.2"]
[White "Gao, Etienne"]
[Black "Weibel, Theo"]
[Result "1-0"]
[ECO "B32"]
[WhiteElo "2286"]
[BlackElo "1981"]
[Annotator "NA"]
[PlyCount "62"]
[EventDate "2019.04.14"]
[EventType "swiss"]
[EventCountry "FRA"]
[SourceTitle "playchess.com"]
[Source "ChessBase"]
[SourceQuality "1"]
[TimeControl "5400+30"]

1. e4 {[%emt 0:00:00]} c5 {[%emt 0:00:00]} 2. Nf3 {[%emt 0:00:08]} Nc6 {[%emt 0:00:06]} 3. d4 {[%emt 0:00:32]} cxd4 {[%emt 0:00:20]} 4. Nxd4 {[%emt 0:00:04]} e5 {[%emt 0:00:15]} 5. Nb5 {[%emt 0:00:21]} d6 {[%emt 0:00:16]} 6. c4 {[%emt 0:01:12]} Be7 {[%emt 0:00:08]} 7. N1c3 {[%emt 0:01:33]} a6 {[%emt 0:00:07]} 8. Na3 {[%emt 0:00:05]} Nf6 {[%emt 0:00:26]} 9. Be2 {[%emt 0:02:34]} O-O {[%emt 0:00:36] B32: Sicilian: Löwenthal and Kalashnikov Variations} 10. O-O {[%emt 0:00:18]} Be6 {[%emt 0:00:41]} 11. Nc2 {[%emt 0:01:23]} Rc8 {[%emt 0:01:22]} 12. Qd3 {[%emt 0:18:51]} ({Better is} 12. Bd2 $14) (12. Be3 Nb8 13. b3 b5 14. Nb4 bxc4 15. Bxc4 Bxc4 16. bxc4 Rxc4 17. Qb3 Rc8 18. Nbd5 Nxd5 19. Nxd5 Bg5 20. Rac1 Rxc1 21. Rxc1 Nd7 22. Rc6 {½-½ (22) Volokitin,A (2649)-Moiseenko,A (2657) Rivne 2016}) 12... Nd7 {[%emt 0:11:29]} ({Black should try} 12... Nd4 $1 $15 13. Nxd4 Bxc4) 13. Be3 {[%emt 0:07:50]} Nc5 {[%emt 0:08:40]} 14. Qd2 {[%emt 0:03:19]} g6 $146 {[%emt 0:13:48]} ({Predecessor:} 14... f5 15. f3 Nd7 16. exf5 Bxf5 17. Ne4 Nf6 {½-½ (47) Sippl,M (1937)-Woerl,R (1940) Germany 2011}) 15. b4 {[%emt 0:02:04]} Nd7 {[%emt 0:00:48]} 16. Nd5 {[%emt 0:01:29]} f5 {[%emt 0:08:25]} ({Black should play} 16... Ncb8) 17. Bh6 {[%emt 0:03:12]} ({Better is} 17. exf5 $16 Bxf5 18. b5) 17... f4 {[%emt 0:13:53]} 18. b5 {[%emt 0:01:42]} axb5 {[%emt 0:02:22]} 19. cxb5 {[%emt 0:00:16]} Rf7 $18 {[%emt 0:06:46]} 20. bxc6 {[%emt 0:00:26]} bxc6 {[%emt 0:00:05]} 21. Nxe7+ {[%emt 0:00:33]} Qxe7 {[%emt 0:00:10]} 22. Ba6 {[%emt 0:01:38]} Rd8 {[%emt 0:01:32]} 23. g3 {[%emt 0:14:44]} Nc5 {[%emt 0:01:37]} 24. Nb4 {[%emt 0:01:21]} Nxa6 {[%emt 0:03:33]} 25. Nxa6 {[%emt 0:04:58]} c5 {[%emt 0:02:01]} 26. Rfb1 {[%emt 0:01:46]} Qa7 {[%emt 0:03:40]} 27. Qa5 {[%emt 0:02:22]} Ra8 {[%emt 0:00:56]} 28. Rb6 {[%emt 0:01:02]} Bc4 {[%emt 0:00:39]} 29. Rxd6 {[%emt 0:04:08]} Bxa6 {[%emt 0:00:23]} 30. Rd8+ {[%emt 0:00:36]} Rf8 {[%emt 0:00:24]} 31. Rd6 {[%emt 0:25:03]} Rf7 {[%emt 0:20:02]} 1-0

[Event "FRA-ch Youth U18 2019"]
[Site "Hyeres"]
[Date "2019.04.15"]
[Round "3.3"]
[White "Gault, Emmanuel"]
[Black "Bournel, Antoine"]
[Result "0-1"]
[ECO "A25"]
[WhiteElo "1962"]
[BlackElo "2221"]
[Annotator "NA RC"]
[PlyCount "40"]
[EventDate "2019.04.14"]
[EventType "swiss"]
[EventCountry "FRA"]
[SourceTitle "playchess.com"]
[Source "ChessBase"]
[SourceQuality "1"]
[TimeControl "5400+30"]

1. c4 {[%emt 0:00:00]} e5 {[%emt 0:02:43]} 2. Nc3 {[%emt 0:00:00]} Nc6 {[%emt 0:00:17]} 3. g3 {[%emt 0:00:00]} d6 {[%emt 0:00:17]} 4. Bg2 {[%emt 0:00:00]} Be6 {[%emt 0:00:21]} 5. b3 {[%emt 0:00:12]} g6 {[%emt 0:02:58]} 6. e3 {[%emt 0:00:23]} Bg7 {[%emt 0:00:39]} 7. Nge2 {[%emt 0:00:07]} Nge7 {[%emt 0:02:01]} 8. Bb2 {[%emt 0:00:11]} Qd7 {[%emt 0:01:45]} 9. h4 {[%emt 0:06:32]} d5 {[%emt 0:11:30]} 10. d4 {[%emt 0:05:40]} exd4 {[%emt 0:13:35]} 11. exd4 {[%emt 0:00:35]} dxc4 {[%emt 0:05:54]} 12. Ne4 {[%emt 0:12:00]} b6 $17 {[%emt 0:09:35]} 13. Nf4 {[%emt 0:16:10]} O-O-O {[%emt 0:05:22]} 14. O-O {[%emt 0:08:21]} Nxd4 {[%emt 0:03:46]} 15. Rc1 {[%emt 0:07:12]} Bg4 {[%emt 0:06:29]} 16. Qd2 {[%emt 0:02:07]} Ne2+ {[%emt 0:01:07]} 17. Nxe2 {[%emt 0:00:47]} Qxd2 {[%emt 0:00:06]} 18. Nxd2 {[%emt 0:00:16]} Bxb2 {[%emt 0:00:06]} 19. Rc2 {[%emt 0:01:18]} Bxe2 {[%emt 0:00:15]} 20. Re1 {[%emt 0:02:41]} c3 {[%emt 0:02:28]} 0-1

[Event "FRA-ch Youth U18 2019"]
[Site "Hyeres"]
[Date "2019.04.15"]
[Round "3.4"]
[White "Arnaud, Aurelien"]
[Black "Profili, Emilio"]
[Result "1-0"]
[ECO "E02"]
[WhiteElo "2174"]
[BlackElo "1943"]
[Annotator "NA"]
[PlyCount "107"]
[EventDate "2019.04.14"]
[EventType "swiss"]
[EventCountry "FRA"]
[SourceTitle "playchess.com"]
[Source "ChessBase"]
[SourceQuality "1"]
[TimeControl "5400+30"]

1. d4 {[%emt 0:39:30]} e6 {[%emt 0:22:42]} 2. c4 {[%emt 0:00:30]} Nf6 {[%emt 0:00:30]} 3. g3 {[%emt 0:00:30]} d5 {[%emt 0:00:30]} 4. Nf3 {[%emt 0:00:30]} dxc4 {[%emt 0:00:30]} 5. Qa4+ {[%emt 0:00:30]} Bd7 {[%emt 0:00:30]} 6. Qxc4 {[%emt 0:00:30]} Bc6 {[%emt 0:00:30]} 7. Bg2 {[%emt 0:00:30]} Nbd7 {[%emt 0:00:30]} 8. Nc3 {[%emt 0:00:30]} Be7 {[%emt 0:00:30]} 9. O-O {[%emt 0:00:30]} O-O {[%emt 0:00:30]} 10. Rd1 {[%emt 0:00:30]} Nb6 {[%emt 0:00:30]} 11. Qd3 {[%emt 0:00:30]} Na4 {[%emt 0:00:30]} 12. Nxa4 {[%emt 0:00:30]} Bxa4 {[%emt 0:00:30]} 13. b3 {[%emt 0:00:30]} Bc6 {[%emt 0:00:30]} 14. Bg5 {[%emt 0:00:30]} Be4 {[%emt 0:00:30]} 15. Qe3 {[%emt 0:00:30]} Qd5 {[%emt 0:00:30]} 16. Bxf6 {[%emt 0:00:30]} gxf6 {[%emt 0:00:30]} 17. Nh4 {[%emt 0:00:30]} Bxg2 {[%emt 0:00:30]} 18. Nxg2 {[%emt 0:00:30]} Rfd8 $16 {[%emt 0:00:30]} 19. Nf4 {[%emt 0:00:30]} Qf5 {[%emt 0:00:30]} 20. d5 {[%emt 0:00:30]} e5 {[%emt 0:00:30]} 21. Ng2 {[%emt 0:00:30]} Rd7 {[%emt 0:00:30]} 22. Nh4 {[%emt 0:00:30]} Qg4 {[%emt 0:00:30]} 23. Rac1 {[%emt 0:00:30]} b5 {[%emt 0:00:30]} 24. Qd3 {[%emt 0:00:30]} e4 {[%emt 0:00:30]} 25. Qxb5 {[%emt 0:00:30]} Rad8 {[%emt 0:00:30]} 26. Ng2 {[%emt 0:00:30]} c5 {[%emt 0:00:30]} 27. Qc4 {[%emt 0:00:30]} f5 {[%emt 0:00:30]} 28. Rc2 {[%emt 0:00:30]} Bd6 {[%emt 0:00:30]} 29. Rcd2 {[%emt 0:00:30]} Re7 {[%emt 0:00:30]} 30. e3 {[%emt 0:00:30]} h5 {[%emt 0:00:30]} 31. Qe2 {[%emt 0:00:30]} Qg5 {[%emt 0:00:30]} 32. f4 {[%emt 0:00:30]} exf3 {[%emt 0:00:30]} 33. Qxf3 {[%emt 0:00:30]} Rde8 {[%emt 0:00:30]} 34. Rd3 {[%emt 0:00:30]} Re4 {[%emt 0:00:30]} 35. Kf2 {[%emt 0:00:30]} a5 {[%emt 0:00:30]} 36. Nf4 {[%emt 0:00:30]} h4 {[%emt 0:00:30]} 37. Rg1 {[%emt 0:00:30]} Kf8 {[%emt 0:00:30]} 38. Ng2 {[%emt 0:00:30]} hxg3+ {[%emt 0:00:30]} 39. hxg3 {[%emt 0:00:30]} a4 {[%emt 0:00:30]} 40. Rh1 {[%emt 0:00:30]} c4 {[%emt 0:00:30]} 41. bxc4 {[%emt 0:00:30]} Rxc4 {[%emt 0:00:30]} 42. Rd2 {[%emt 0:00:30]} Ree4 {[%emt 0:00:30]} 43. Rh5 {[%emt 0:00:30]} Bxg3+ {[%emt 0:00:30]} 44. Ke2 {[%emt 0:00:30]} Qg6 {[%emt 0:00:30]} 45. Rxf5 {[%emt 0:00:30]} Be5 {[%emt 0:00:30]} 46. d6 {[%emt 0:00:30]} Rg4 {[%emt 0:00:30]} 47. Ne1 {[%emt 0:00:30]} Rc8 {[%emt 0:00:30]} 48. Rxe5 {[%emt 0:00:30]} Kg7 {[%emt 0:00:30]} 49. Re7 {[%emt 0:00:30]} Rg5 {[%emt 0:00:30]} 50. d7 {[%emt 0:00:30]} Rh8 {[%emt 0:00:30]} 51. Qxf7+ {[%emt 0:00:30]} Qxf7 {[%emt 0:00:30]} 52. Rxf7+ {[%emt 0:00:30]} Kxf7 {[%emt 0:00:30]} 53. d8=Q {[%emt 0:00:30]} Rxd8 {[%emt 0:00:30]} 54. Rxd8 {[%emt 0:00:30]} 1-0

[Event "FRA-ch Youth U18 2019"]
[Site "Hyeres"]
[Date "2019.04.16"]
[Round "4.1"]
[White "Pham, Arthur"]
[Black "Travadon, Loic"]
[Result "0-1"]
[ECO "B50"]
[WhiteElo "2099"]
[BlackElo "2456"]
[Annotator "ChessBase"]
[PlyCount "92"]
[EventDate "2019.04.14"]
[EventType "swiss"]
[EventCountry "FRA"]
[SourceTitle "playchess.com"]
[Source "ChessBase"]
[SourceQuality "1"]
[TimeControl "5400+30"]

1. e4 {[%emt 0:00:00]} c5 {[%emt 0:00:00]} 2. Nf3 {[%emt 0:00:05]} d6 {[%emt 0:00:00]} 3. c3 {[%emt 0:00:31]} Nf6 {[%emt 0:00:00]} 4. h3 {[%emt 0:00:22]} Nc6 {[%emt 0:00:00]} 5. Bd3 {[%emt 0:00:13]} d5 {[%emt 0:00:00]} 6. e5 {[%emt 0:07:34]} c4 {[%emt 0:00:06]} 7. Bc2 {[%emt 0:03:26]} Nd7 {[%emt 0:00:04]} 8. Qe2 {[%emt 0:04:59]} Qc7 {[%emt 0:00:04]} 9. d4 {[%emt 0:06:19]} cxd3 {[%emt 0:00:08]} 10. Qxd3 {[%emt 0:00:27]} e6 {[%emt 1:34:38]} 11. Bf4 {[%emt 0:03:22]} Ndxe5 12. Nxe5 {[%emt 0:05:04]} Nxe5 {[%emt 0:00:00]} 13. Qg3 Nc6 {[%emt 0:00:00]} 14. Qd3 {[%emt 0:01:00]} Ne5 {[%emt 0:00:00]} 15. Qg3 {[%emt 0:00:30]} f6 16. Bxe5 {[%emt 0:00:30]} Qxe5+ {[%emt 0:00:00]} 17. Qxe5 {[%emt 0:00:30]} fxe5 {[%emt 0:00:00]} 18. Nd2 {[%emt 0:05:14]} g5 {[%emt 0:00:00]} 19. Nf3 {[%emt 0:14:51]} e4 {[%emt 0:00:00]} 20. Nxg5 {[%emt 0:00:30]} h6 {[%emt 0:00:00]} 21. Nxe4 dxe4 22. Bxe4 {[%emt 0:06:47]} Bc5 {[%emt 0:06:00]} 23. Rd1 {[%emt 0:39:16]} Rf8 {[%emt 0:00:30]} 24. Rf1 {[%emt 0:00:30]} Ke7 {[%emt 0:00:00]} 25. f4 {[%emt 0:00:00]} Bd7 {[%emt 0:00:00]} 26. Rf3 {[%emt 0:00:00]} a5 {[%emt 0:00:00]} 27. Rd2 {[%emt 0:00:00]} Bc6 {[%emt 0:00:00]} 28. Bxc6 {[%emt 0:00:00]} bxc6 {[%emt 0:00:00]} 29. Re2 {[%emt 0:00:00]} Kf6 {[%emt 0:00:00]} 30. g4 {[%emt 0:00:00]} Bd6 {[%emt 0:00:00]} 31. Re4 {[%emt 0:00:00]} Rab8 {[%emt 0:00:00]} 32. b3 {[%emt 0:00:00]} Rb5 {[%emt 0:00:00]} 33. Rfe3 {[%emt 0:00:00]} Re8 {[%emt 0:00:00]} 34. Rd3 {[%emt 0:00:00]} Rd5 {[%emt 0:00:00]} 35. Rxd5 {[%emt 0:00:00]} cxd5 {[%emt 0:00:00]} 36. Ra4 {[%emt 0:00:00]} Bc7 {[%emt 0:00:00]} 37. Rd4 {[%emt 0:00:00]} e5 {[%emt 0:00:00]} 38. Rxd5 {[%emt 0:00:00]} exf4+ {[%emt 0:00:00]} 39. Kf2 {[%emt 0:00:00]} Re3 {[%emt 0:00:00]} 40. Rh5 {[%emt 0:01:01]} Rxc3 {[%emt 0:00:00]} 41. Rxh6+ {[%emt 0:00:12]} Ke5 {[%emt 0:00:00]} 42. h4 {[%emt 0:02:45]} Ke4 {[%emt 0:00:00]} 43. Re6+ {[%emt 0:00:35]} Be5 {[%emt 0:00:00]} 44. g5 {[%emt 0:01:56]} Rc2+ {[%emt 0:00:00]} 45. Ke1 {[%emt 0:00:41]} f3 46. g6 {[%emt 0:03:50]} f2+ {[%emt 0:11:30]} 0-1